Department family,Entity,Date,Expense Type,Expense area,Supplier,Transaction number,AP Amount (�)
Department of Health,NHS Barnsley CCG,30/09/2019,C&M-APMS Contract Value,PRC DELEGATED CO-COMMISSIONING,BARNSLEY HEALTHCARE FEDERATION,28876012,"27,862.25"
Department of Health,NHS Barnsley CCG,30/09/2019,C&M-APMS OOH Opt Outs,PRC DELEGATED CO-COMMISSIONING,BARNSLEY HEALTHCARE FEDERATION,28876012,9.61
Department of Health,NHS Barnsley CCG,30/09/2019,C&M-APMS PCN DES Participation,PRC DELEGATED CO-COMMISSIONING,BARNSLEY HEALTHCARE FEDERATION,28876012,525.63
Department of Health,NHS Barnsley CCG,30/09/2019,C&M-APMS Prem Actual Rent,PRC DELEGATED CO-COMMISSIONING,BARNSLEY HEALTHCARE FEDERATION,28876012,"1,310.42"
Department of Health,NHS Barnsley CCG,30/09/2019,C&M-APMS Prem Rates,PRC DELEGATED CO-COMMISSIONING,BARNSLEY HEALTHCARE FEDERATION,28876012,500.00
Department of Health,NHS Barnsley CCG,30/09/2019,C&M-APMS QOF Aspiration,PRC DELEGATED CO-COMMISSIONING,BARNSLEY HEALTHCARE FEDERATION,28876012,"2,347.18"
Department of Health,NHS Barnsley CCG,30/09/2019,C&M-APMS Contract Value,PRC DELEGATED CO-COMMISSIONING,BARNSLEY HEALTHCARE FEDERATION,28876014,"31,719.61"
Department of Health,NHS Barnsley CCG,30/09/2019,C&M-APMS OOH Opt Outs,PRC DELEGATED CO-COMMISSIONING,BARNSLEY HEALTHCARE FEDERATION,28876014,12.81
Department of Health,NHS Barnsley CCG,30/09/2019,C&M-APMS PCN DES Participation,PRC DELEGATED CO-COMMISSIONING,BARNSLEY HEALTHCARE FEDERATION,28876014,615.93
Department of Health,NHS Barnsley CCG,30/09/2019,C&M-APMS Prem Actual Rent,PRC DELEGATED CO-COMMISSIONING,BARNSLEY HEALTHCARE FEDERATION,28876014,"2,150.00"
Department of Health,NHS Barnsley CCG,30/09/2019,C&M-APMS Prem Healthcentre Rent,PRC DELEGATED CO-COMMISSIONING,BARNSLEY HEALTHCARE FEDERATION,28876014,"7,567.71"
Department of Health,NHS Barnsley CCG,30/09/2019,C&M-APMS Prem Rates,PRC DELEGATED CO-COMMISSIONING,BARNSLEY HEALTHCARE FEDERATION,28876014,503.00
Department of Health,NHS Barnsley CCG,30/09/2019,C&M-APMS Prem Water Rates,PRC DELEGATED CO-COMMISSIONING,BARNSLEY HEALTHCARE FEDERATION,28876014,51.99
Department of Health,NHS Barnsley CCG,30/09/2019,C&M-PMS QOF Aspiration,PRC DELEGATED CO-COMMISSIONING,BARNSLEY HEALTHCARE FEDERATION,28876014,"2,244.77"
Department of Health,NHS Barnsley CCG,30/09/2019,C&M-APMS Contract Value,PRC DELEGATED CO-COMMISSIONING,BARNSLEY HEALTHCARE FEDERATION,28876016,"28,520.93"
Department of Health,NHS Barnsley CCG,30/09/2019,C&M-APMS PCN DES Participation,PRC DELEGATED CO-COMMISSIONING,BARNSLEY HEALTHCARE FEDERATION,28876016,542.52
Department of Health,NHS Barnsley CCG,30/09/2019,C&M-APMS Prem Actual Rent,PRC DELEGATED CO-COMMISSIONING,BARNSLEY HEALTHCARE FEDERATION,28876016,"6,200.00"
Department of Health,NHS Barnsley CCG,30/09/2019,C&M-APMS Prem Rates,PRC DELEGATED CO-COMMISSIONING,BARNSLEY HEALTHCARE FEDERATION,28876016,"1,235.00"
Department of Health,NHS Barnsley CCG,30/09/2019,C&M-PMS QOF Aspiration,PRC DELEGATED CO-COMMISSIONING,BARNSLEY HEALTHCARE FEDERATION,28876016,"2,495.50"
Department of Health,NHS Barnsley CCG,30/09/2019,C&M-GP PRACTICE REVENUE - PCTF,GP FORWARD VIEW,BARNSLEY HEALTHCARE FEDERATION,29094462,"140,527.50"
Department of Health,NHS Barnsley CCG,30/09/2019,Clinical&Medical-Commercial Sector,OUT OF HOURS,BARNSLEY HEALTHCARE FEDERATION,29094465,"120,520.57"
Department of Health,NHS Barnsley CCG,30/09/2019,C&M-PMS Practice Transformational Support,COMMISSIONING SCHEMES,BARNSLEY HEALTHCARE FEDERATION,29094467,"54,166.67"
Department of Health,NHS Barnsley CCG,30/09/2019,C&M-PMS Contract Value,PRC DELEGATED CO-COMMISSIONING,BARNSLEY HEALTHCARE FEDERATION CIC (GOLDTHORPE),28884453,"41,822.39"
Department of Health,NHS Barnsley CCG,30/09/2019,C&M-PMS Out of Hours Opt Outs,PRC DELEGATED CO-COMMISSIONING,BARNSLEY HEALTHCARE FEDERATION CIC (GOLDTHORPE),28884453,13.00
Department of Health,NHS Barnsley CCG,30/09/2019,C&M-PMS PCN DES Participation,PRC DELEGATED CO-COMMISSIONING,BARNSLEY HEALTHCARE FEDERATION CIC (GOLDTHORPE),28884453,804.38
Department of Health,NHS Barnsley CCG,30/09/2019,C&M-PMS Prem Healthcentre Rent,PRC DELEGATED CO-COMMISSIONING,BARNSLEY HEALTHCARE FEDERATION CIC (GOLDTHORPE),28884453,"12,099.61"
Department of Health,NHS Barnsley CCG,30/09/2019,C&M-PMS QOF Aspiration,PRC DELEGATED CO-COMMISSIONING,BARNSLEY HEALTHCARE FEDERATION CIC (GOLDTHORPE),28884453,"3,008.69"
Department of Health,NHS Barnsley CCG,30/09/2019,Clinical&Medical-Voluntary Sector,HOSPICES,BARNSLEY HOSPICE,29133397,"378,965.50"
Department of Health,NHS Barnsley CCG,30/09/2019,Hcare Srv Rec Fdtn Trust-Contract Baseline,ACUTE COMMISSIONING,BARNSLEY HOSPITAL NHS FOUNDATION TRUST,28859902,"595,384.00"
Department of Health,NHS Barnsley CCG,30/09/2019,Hcare Srv Rec Fdtn Trust-Contract Baseline,ACUTE COMMISSIONING,BARNSLEY HOSPITAL NHS FOUNDATION TRUST,28859903,"13,114,478.00"
Department of Health,NHS Barnsley CCG,30/09/2019,Hcare Srv Rec Fdtn Trust-Contract Baseline,INTERMEDIATE CARE,BARNSLEY HOSPITAL NHS FOUNDATION TRUST,28859904,"227,319.00"
Department of Health,NHS Barnsley CCG,30/09/2019,Hcare Srv Rec Fdtn Trust-Contract Baseline,LONG TERM CONDITIONS,BARNSLEY HOSPITAL NHS FOUNDATION TRUST,28859904,"159,065.00"
Department of Health,NHS Barnsley CCG,30/09/2019,C&M-GMS DES Extended Hours Access,PRC DELEGATED CO-COMMISSIONING,BHF - PCN,28930727,"31,961.73"
Department of Health,NHS Barnsley CCG,30/09/2019,C&M-PMS PCN DES Clinical Director,PRC DELEGATED CO-COMMISSIONING,BHF - PCN,28930727,"14,948.43"
Department of Health,NHS Barnsley CCG,30/09/2019,Clinical&Medical-Commercial Sector,ACUTE COMMISSIONING,BMI HEALTHCARE LTD,28802270,"29,370.48"
Department of Health,NHS Barnsley CCG,30/09/2019,Clinical&Medical-Commercial Sector,ACUTE COMMISSIONING,CLAREMONT HOSPITAL,28888413,"33,040.00"
Department of Health,NHS Barnsley CCG,31/08/2019,Voids and Subsidies,RECHARGES NHS PROPERTY SERVICES LTD,COMMUNITY HEALTH PARTNERSHIPS LTD,28742892,"53,033.71"
Department of Health,NHS Barnsley CCG,31/08/2019,Hcare Srv Rec Fdtn Trust-CQUIN,ACUTE COMMISSIONING,DONCASTER AND BASSETLAW HOSPITALS NHS FOUNDATION TRUST,28675234,"2,483.00"
Department of Health,NHS Barnsley CCG,31/08/2019,Hcare Srv Rec Fdtn Trust-Contract Baseline,ACUTE COMMISSIONING,DONCASTER AND BASSETLAW HOSPITALS NHS FOUNDATION TRUST,28675234,"432,508.00"
Department of Health,NHS Barnsley CCG,30/09/2019,Clinical&Medical-Commercial Sector,LEARNING DIFFICULTIES,ELYSIUM HEALTHCARE LTD,28773847,"34,167.89"
Department of Health,NHS Barnsley CCG,30/09/2019,Clinical&Medical-Commercial Sector,LEARNING DIFFICULTIES,ELYSIUM HEALTHCARE LTD,28773850,"30,217.25"
Department of Health,NHS Barnsley CCG,30/09/2019,Clinical&Medical-Commercial Sector,LEARNING DIFFICULTIES,ELYSIUM HEALTHCARE LTD,29168863,"29,242.50"
Department of Health,NHS Barnsley CCG,30/09/2019,Clinical&Medical-Commercial Sector,LEARNING DIFFICULTIES,ELYSIUM HEALTHCARE LTD,29168871,"33,065.70"
Department of Health,NHS Barnsley CCG,30/09/2019,Soc Care-Bed-Based Int Care Servs,INTERMEDIATE CARE,HIGHSTONE MEWS CARE HOME,28855537,"37,656.00"
Department of Health,NHS Barnsley CCG,30/09/2019,Apprenticeship Levy Payable,BALANCE SHEET,HMRC,28945635,"1,089.00"
Department of Health,NHS Barnsley CCG,30/09/2019,Income tax <1Yr,BALANCE SHEET,HMRC,28945635,"68,496.60"
Department of Health,NHS Barnsley CCG,30/09/2019,Income tax <1Yr-Student Loans,BALANCE SHEET,HMRC,28945635,"1,614.00"
Department of Health,NHS Barnsley CCG,30/09/2019,National Insurance < 1 yr-NI- ERS,BALANCE SHEET,HMRC,28945635,"49,890.98"
Department of Health,NHS Barnsley CCG,30/09/2019,National Insurance < 1 yr-NI-EES,BALANCE SHEET,HMRC,28945635,"36,954.53"
Department of Health,NHS Barnsley CCG,30/09/2019,Statutory Mat Pay < 1 yr,BALANCE SHEET,HMRC,28945635,"-1,929.34"
Department of Health,NHS Barnsley CCG,30/09/2019,Statutory Paternity Pay < 1 yr,BALANCE SHEET,HMRC,28945635,-273.58
Department of Health,NHS Barnsley CCG,30/09/2019,External Data Contracts,BUSINESS INFORMATICS,KIER BUSINESS SERVICES LTD,28819548,"13,467.00"
Department of Health,NHS Barnsley CCG,30/09/2019,External Data Contracts,COMMISSIONING SCHEMES,KIER BUSINESS SERVICES LTD,28819548,"14,391.00"
Department of Health,NHS Barnsley CCG,30/09/2019,Telecoms-Data lines,PRIMARY CARE IT,KIER BUSINESS SERVICES LTD,28819548,"47,150.00"
Department of Health,NHS Barnsley CCG,30/09/2019,Hcare Srv Rec NHS Trust-CQUIN,ACUTE COMMISSIONING,LEEDS TEACHING HOSPITALS NHS TRUST,28819439,"1,010.00"
Department of Health,NHS Barnsley CCG,30/09/2019,Hcare Srv Rec NHS Trust-Contract Baseline,ACUTE COMMISSIONING,LEEDS TEACHING HOSPITALS NHS TRUST,28819439,"97,982.00"
Department of Health,NHS Barnsley CCG,30/09/2019,Hcare Srv Rec NHS Trust-CQUIN,ACUTE COMMISSIONING,MID YORKSHIRE HOSPITALS NHS TRUST,28844505,"1,354.00"
Department of Health,NHS Barnsley CCG,30/09/2019,Hcare Srv Rec NHS Trust-Contract Baseline,ACUTE COMMISSIONING,MID YORKSHIRE HOSPITALS NHS TRUST,28844505,"246,868.00"
Department of Health,NHS Barnsley CCG,30/09/2019,Clinical&Medical-Commercial Sector,Mental Health Services - S117 Mental Health,NEVILLE HEALTH CARE LTD,28773985,"34,651.10"
Department of Health,NHS Barnsley CCG,30/09/2019,C&M-GMS DES Learn Dsblty Hlth Chk,PRC DELEGATED CO-COMMISSIONING,NHS BARNSLEY CCG GP PRACTICE,29108392,"3,640.00"
Department of Health,NHS Barnsley CCG,30/09/2019,C&M-GMS Global Sum,PRC DELEGATED CO-COMMISSIONING,NHS BARNSLEY CCG GP PRACTICE,29108392,"95,212.63"
Department of Health,NHS Barnsley CCG,30/09/2019,C&M-GMS PCN DES Participation,PRC DELEGATED CO-COMMISSIONING,NHS BARNSLEY CCG GP PRACTICE,29108392,"1,946.09"
Department of Health,NHS Barnsley CCG,30/09/2019,C&M-GMS PCO Seniority,PRC DELEGATED CO-COMMISSIONING,NHS BARNSLEY CCG GP PRACTICE,29108392,"1,362.16"
Department of Health,NHS Barnsley CCG,30/09/2019,C&M-GMS Prem Actual Rent,PRC DELEGATED CO-COMMISSIONING,NHS BARNSLEY CCG GP PRACTICE,29108392,"12,500.00"
Department of Health,NHS Barnsley CCG,30/09/2019,C&M-GMS Prem Healthcentre Rent,PRC DELEGATED CO-COMMISSIONING,NHS BARNSLEY CCG GP PRACTICE,29108392,"3,276.92"
Department of Health,NHS Barnsley CCG,30/09/2019,C&M-GMS Prem Rates,PRC DELEGATED CO-COMMISSIONING,NHS BARNSLEY CCG GP PRACTICE,29108392,"4,680.00"
Department of Health,NHS Barnsley CCG,30/09/2019,C&M-GMS Prem Water Rates,PRC DELEGATED CO-COMMISSIONING,NHS BARNSLEY CCG GP PRACTICE,29108392,623.00
Department of Health,NHS Barnsley CCG,30/09/2019,C&M-GMS QOF Aspiration,PRC DELEGATED CO-COMMISSIONING,NHS BARNSLEY CCG GP PRACTICE,29108392,"9,600.36"
Department of Health,NHS Barnsley CCG,30/09/2019,C&M-GMS Global Sum,PRC DELEGATED CO-COMMISSIONING,NHS BARNSLEY CCG GP PRACTICE,29106998,"86,023.52"
Department of Health,NHS Barnsley CCG,30/09/2019,C&M-GMS PCN DES Participation,PRC DELEGATED CO-COMMISSIONING,NHS BARNSLEY CCG GP PRACTICE,29106998,"1,756.95"
Department of Health,NHS Barnsley CCG,30/09/2019,C&M-GMS PCO Seniority,PRC DELEGATED CO-COMMISSIONING,NHS BARNSLEY CCG GP PRACTICE,29106998,357.79
Department of Health,NHS Barnsley CCG,30/09/2019,C&M-GMS Prem Healthcentre Rent,PRC DELEGATED CO-COMMISSIONING,NHS BARNSLEY CCG GP PRACTICE,29106998,"27,043.66"
Department of Health,NHS Barnsley CCG,30/09/2019,C&M-GMS QOF Aspiration,PRC DELEGATED CO-COMMISSIONING,NHS BARNSLEY CCG GP PRACTICE,29106998,"8,149.07"
Department of Health,NHS Barnsley CCG,30/09/2019,C&M-PMS Contract Value,PRC DELEGATED CO-COMMISSIONING,NHS BARNSLEY CCG GP PRACTICE,28875989,"92,434.22"
Department of Health,NHS Barnsley CCG,30/09/2019,C&M-PMS Out of Hours Opt Outs,PRC DELEGATED CO-COMMISSIONING,NHS BARNSLEY CCG GP PRACTICE,28875989,29.73
Department of Health,NHS Barnsley CCG,30/09/2019,C&M-PMS PCN DES Participation,PRC DELEGATED CO-COMMISSIONING,NHS BARNSLEY CCG GP PRACTICE,28875989,"1,811.14"
Department of Health,NHS Barnsley CCG,30/09/2019,C&M-PMS PCO Other,PRC DELEGATED CO-COMMISSIONING,NHS BARNSLEY CCG GP PRACTICE,28875989,646.50
Department of Health,NHS Barnsley CCG,30/09/2019,C&M-PMS PCO Seniority,PRC DELEGATED CO-COMMISSIONING,NHS BARNSLEY CCG GP PRACTICE,28875989,644.80
Department of Health,NHS Barnsley CCG,30/09/2019,C&M-PMS Prem Healthcentre Rent,PRC DELEGATED CO-COMMISSIONING,NHS BARNSLEY CCG GP PRACTICE,28875989,"18,178.19"
Department of Health,NHS Barnsley CCG,30/09/2019,C&M-PMS Prem Notional Rent,PRC DELEGATED CO-COMMISSIONING,NHS BARNSLEY CCG GP PRACTICE,28875989,"1,987.50"
Department of Health,NHS Barnsley CCG,30/09/2019,C&M-PMS Prem Rates,PRC DELEGATED CO-COMMISSIONING,NHS BARNSLEY CCG GP PRACTICE,28875989,360.61
Department of Health,NHS Barnsley CCG,30/09/2019,C&M-PMS QOF Aspiration,PRC DELEGATED CO-COMMISSIONING,NHS BARNSLEY CCG GP PRACTICE,28875989,"10,450.25"
Department of Health,NHS Barnsley CCG,30/09/2019,C&M-PMS Contract Value,PRC DELEGATED CO-COMMISSIONING,NHS BARNSLEY CCG GP PRACTICE,28875992,"56,921.32"
Department of Health,NHS Barnsley CCG,30/09/2019,C&M-PMS PCN DES Participation,PRC DELEGATED CO-COMMISSIONING,NHS BARNSLEY CCG GP PRACTICE,28875992,"1,084.83"
Department of Health,NHS Barnsley CCG,30/09/2019,C&M-PMS PCO Seniority,PRC DELEGATED CO-COMMISSIONING,NHS BARNSLEY CCG GP PRACTICE,28875992,"1,538.01"
Department of Health,NHS Barnsley CCG,30/09/2019,C&M-PMS Prem Healthcentre Rent,PRC DELEGATED CO-COMMISSIONING,NHS BARNSLEY CCG GP PRACTICE,28875992,"21,474.28"
Department of Health,NHS Barnsley CCG,30/09/2019,C&M-PMS QOF Aspiration,PRC DELEGATED CO-COMMISSIONING,NHS BARNSLEY CCG GP PRACTICE,28875992,"5,320.13"
Department of Health,NHS Barnsley CCG,30/09/2019,C&M-GMS Global Sum,PRC DELEGATED CO-COMMISSIONING,NHS BARNSLEY CCG GP PRACTICE,29107000,"76,735.90"
Department of Health,NHS Barnsley CCG,30/09/2019,C&M-GMS PCN DES Participation,PRC DELEGATED CO-COMMISSIONING,NHS BARNSLEY CCG GP PRACTICE,29107000,"1,574.13"
Department of Health,NHS Barnsley CCG,30/09/2019,C&M-GMS PCO Other,PRC DELEGATED CO-COMMISSIONING,NHS BARNSLEY CCG GP PRACTICE,29107000,614.90
Department of Health,NHS Barnsley CCG,30/09/2019,C&M-GMS PCO Seniority,PRC DELEGATED CO-COMMISSIONING,NHS BARNSLEY CCG GP PRACTICE,29107000,"2,298.32"
Department of Health,NHS Barnsley CCG,30/09/2019,C&M-GMS Prem Notional Rent,PRC DELEGATED CO-COMMISSIONING,NHS BARNSLEY CCG GP PRACTICE,29107000,"4,658.33"
Department of Health,NHS Barnsley CCG,30/09/2019,C&M-GMS Prem Rates,PRC DELEGATED CO-COMMISSIONING,NHS BARNSLEY CCG GP PRACTICE,29107000,"1,318.00"
Department of Health,NHS Barnsley CCG,30/09/2019,C&M-GMS QOF Aspiration,PRC DELEGATED CO-COMMISSIONING,NHS BARNSLEY CCG GP PRACTICE,29107000,"8,124.94"
Department of Health,NHS Barnsley CCG,30/09/2019,C&M-PMS Contract Value,PRC DELEGATED CO-COMMISSIONING,NHS BARNSLEY CCG GP PRACTICE,28875995,-71.56
Department of Health,NHS Barnsley CCG,30/09/2019,C&M-PMS GP Statutory Levy,PRC DELEGATED CO-COMMISSIONING,NHS BARNSLEY CCG GP PRACTICE,28875995,-570.40
Department of Health,NHS Barnsley CCG,30/09/2019,C&M-PMS Out of Hours Opt Outs,PRC DELEGATED CO-COMMISSIONING,NHS BARNSLEY CCG GP PRACTICE,28875995,"-6,398.57"
Department of Health,NHS Barnsley CCG,30/09/2019,C&M-PMS Voluntary Levy,PRC DELEGATED CO-COMMISSIONING,NHS BARNSLEY CCG GP PRACTICE,28875995,-99.82
Department of Health,NHS Barnsley CCG,30/09/2019,ME-PMS GP Pension EEs-PMS,PRC DELEGATED CO-COMMISSIONING,NHS BARNSLEY CCG GP PRACTICE,28875995,"-11,568.75"
Department of Health,NHS Barnsley CCG,30/09/2019,ME-PMS GP Pension ERs Adjs - PMS,PRC DELEGATED CO-COMMISSIONING,NHS BARNSLEY CCG GP PRACTICE,28875995,"-12,187.05"
Department of Health,NHS Barnsley CCG,30/09/2019,C&M-PMS Contract Value,PRC DELEGATED CO-COMMISSIONING,NHS BARNSLEY CCG GP PRACTICE,28875996,"135,717.64"
Department of Health,NHS Barnsley CCG,30/09/2019,C&M-PMS Out of Hours Opt Outs,PRC DELEGATED CO-COMMISSIONING,NHS BARNSLEY CCG GP PRACTICE,28875996,3.37
Department of Health,NHS Barnsley CCG,30/09/2019,C&M-PMS PCN DES Participation,PRC DELEGATED CO-COMMISSIONING,NHS BARNSLEY CCG GP PRACTICE,28875996,"2,600.20"
Department of Health,NHS Barnsley CCG,30/09/2019,C&M-PMS PCO Seniority,PRC DELEGATED CO-COMMISSIONING,NHS BARNSLEY CCG GP PRACTICE,28875996,"2,182.86"
Department of Health,NHS Barnsley CCG,30/09/2019,C&M-PMS Prem Notional Rent,PRC DELEGATED CO-COMMISSIONING,NHS BARNSLEY CCG GP PRACTICE,28875996,"6,333.33"
Department of Health,NHS Barnsley CCG,30/09/2019,C&M-PMS Prem Rates,PRC DELEGATED CO-COMMISSIONING,NHS BARNSLEY CCG GP PRACTICE,28875996,"2,165.00"
Department of Health,NHS Barnsley CCG,30/09/2019,C&M-PMS QOF Aspiration,PRC DELEGATED CO-COMMISSIONING,NHS BARNSLEY CCG GP PRACTICE,28875996,"13,813.79"
Department of Health,NHS Barnsley CCG,30/09/2019,C&M-PMS Cost of Drugs -Dispensing,LOCAL ENHANCED SERVICES,NHS BARNSLEY CCG GP PRACTICE,29129352,"-80,331.28"
Department of Health,NHS Barnsley CCG,30/09/2019,C&M-PMS Prsc Chrgs Cll&Rmttd by GPs,PRC DELEGATED CO-COMMISSIONING,NHS BARNSLEY CCG GP PRACTICE,29129352,"-5,679.00"
Department of Health,NHS Barnsley CCG,30/09/2019,C&M-PMS Cost of Drugs -Dispensing,LOCAL ENHANCED SERVICES,NHS BARNSLEY CCG GP PRACTICE,29129353,"153,080.59"
Department of Health,NHS Barnsley CCG,30/09/2019,C&M-PMS Prof fees Dispensing,PRC DELEGATED CO-COMMISSIONING,NHS BARNSLEY CCG GP PRACTICE,29129353,"28,596.12"
Department of Health,NHS Barnsley CCG,30/09/2019,C&M-PMS Prsc Chrgs Cll&Rmttd by GPs,LOCAL ENHANCED SERVICES,NHS BARNSLEY CCG GP PRACTICE,29129353,"5,679.00"
Department of Health,NHS Barnsley CCG,30/09/2019,C&M-GMS Global Sum,PRC DELEGATED CO-COMMISSIONING,NHS BARNSLEY CCG GP PRACTICE,29108394,"23,839.26"
Department of Health,NHS Barnsley CCG,30/09/2019,C&M-GMS MPIG Correction Factor,PRC DELEGATED CO-COMMISSIONING,NHS BARNSLEY CCG GP PRACTICE,29108394,202.40
Department of Health,NHS Barnsley CCG,30/09/2019,C&M-GMS PCN DES Participation,PRC DELEGATED CO-COMMISSIONING,NHS BARNSLEY CCG GP PRACTICE,29108394,481.53
Department of Health,NHS Barnsley CCG,30/09/2019,C&M-GMS PCO Other,PRC DELEGATED CO-COMMISSIONING,NHS BARNSLEY CCG GP PRACTICE,29108394,227.50
Department of Health,NHS Barnsley CCG,30/09/2019,C&M-GMS PCO Seniority,PRC DELEGATED CO-COMMISSIONING,NHS BARNSLEY CCG GP PRACTICE,29108394,669.32
Department of Health,NHS Barnsley CCG,30/09/2019,C&M-GMS Prem Healthcentre Rent,PRC DELEGATED CO-COMMISSIONING,NHS BARNSLEY CCG GP PRACTICE,29108394,"1,709.88"
Department of Health,NHS Barnsley CCG,30/09/2019,C&M-GMS QOF Aspiration,PRC DELEGATED CO-COMMISSIONING,NHS BARNSLEY CCG GP PRACTICE,29108394,"2,460.63"
Department of Health,NHS Barnsley CCG,30/09/2019,C&M-GMS Global Sum,PRC DELEGATED CO-COMMISSIONING,NHS BARNSLEY CCG GP PRACTICE,29107002,"42,629.74"
Department of Health,NHS Barnsley CCG,30/09/2019,C&M-GMS PCN DES Participation,PRC DELEGATED CO-COMMISSIONING,NHS BARNSLEY CCG GP PRACTICE,29107002,847.50
Department of Health,NHS Barnsley CCG,30/09/2019,C&M-GMS PCO Seniority,PRC DELEGATED CO-COMMISSIONING,NHS BARNSLEY CCG GP PRACTICE,29107002,305.02
Department of Health,NHS Barnsley CCG,30/09/2019,C&M-GMS Prem Notional Rent,PRC DELEGATED CO-COMMISSIONING,NHS BARNSLEY CCG GP PRACTICE,29107002,"1,681.25"
Department of Health,NHS Barnsley CCG,30/09/2019,C&M-GMS Prem Rates,PRC DELEGATED CO-COMMISSIONING,NHS BARNSLEY CCG GP PRACTICE,29107002,"1,502.00"
Department of Health,NHS Barnsley CCG,30/09/2019,C&M-GMS QOF Aspiration,PRC DELEGATED CO-COMMISSIONING,NHS BARNSLEY CCG GP PRACTICE,29107002,"4,009.16"
Department of Health,NHS Barnsley CCG,30/09/2019,C&M-PMS Contract Value,PRC DELEGATED CO-COMMISSIONING,NHS BARNSLEY CCG GP PRACTICE,28875994,"39,002.92"
Department of Health,NHS Barnsley CCG,30/09/2019,C&M-PMS Out of Hours Opt Outs,PRC DELEGATED CO-COMMISSIONING,NHS BARNSLEY CCG GP PRACTICE,28875994,12.40
Department of Health,NHS Barnsley CCG,30/09/2019,C&M-PMS PCN DES Participation,PRC DELEGATED CO-COMMISSIONING,NHS BARNSLEY CCG GP PRACTICE,28875994,742.47
Department of Health,NHS Barnsley CCG,30/09/2019,C&M-PMS PCO Seniority,PRC DELEGATED CO-COMMISSIONING,NHS BARNSLEY CCG GP PRACTICE,28875994,895.14
Department of Health,NHS Barnsley CCG,30/09/2019,C&M-PMS Prem Healthcentre Rent,PRC DELEGATED CO-COMMISSIONING,NHS BARNSLEY CCG GP PRACTICE,28875994,"3,596.62"
Department of Health,NHS Barnsley CCG,30/09/2019,C&M-PMS Prem Notional Rent,PRC DELEGATED CO-COMMISSIONING,NHS BARNSLEY CCG GP PRACTICE,28875994,"8,808.34"
Department of Health,NHS Barnsley CCG,30/09/2019,C&M-PMS Prem Rates,PRC DELEGATED CO-COMMISSIONING,NHS BARNSLEY CCG GP PRACTICE,28875994,"1,550.59"
Department of Health,NHS Barnsley CCG,30/09/2019,C&M-PMS QOF Aspiration,PRC DELEGATED CO-COMMISSIONING,NHS BARNSLEY CCG GP PRACTICE,28875994,"2,732.54"
Department of Health,NHS Barnsley CCG,30/09/2019,C&M-GMS Global Sum,PRC DELEGATED CO-COMMISSIONING,NHS BARNSLEY CCG GP PRACTICE,29107006,"109,385.00"
Department of Health,NHS Barnsley CCG,30/09/2019,C&M-GMS PCN DES Participation,PRC DELEGATED CO-COMMISSIONING,NHS BARNSLEY CCG GP PRACTICE,29107006,"2,254.50"
Department of Health,NHS Barnsley CCG,30/09/2019,C&M-GMS PCO Locum Adop/Pat/Mat,PRC DELEGATED CO-COMMISSIONING,NHS BARNSLEY CCG GP PRACTICE,29107006,"58,907.18"
Department of Health,NHS Barnsley CCG,30/09/2019,C&M-GMS PCO Seniority,PRC DELEGATED CO-COMMISSIONING,NHS BARNSLEY CCG GP PRACTICE,29107006,"3,523.52"
Department of Health,NHS Barnsley CCG,30/09/2019,C&M-GMS Prem Notional Rent,PRC DELEGATED CO-COMMISSIONING,NHS BARNSLEY CCG GP PRACTICE,29107006,"7,297.17"
Department of Health,NHS Barnsley CCG,30/09/2019,C&M-GMS Prem Water Rates,PRC DELEGATED CO-COMMISSIONING,NHS BARNSLEY CCG GP PRACTICE,29107006,428.37
Department of Health,NHS Barnsley CCG,30/09/2019,C&M-GMS QOF Aspiration,PRC DELEGATED CO-COMMISSIONING,NHS BARNSLEY CCG GP PRACTICE,29107006,"11,179.35"
Department of Health,NHS Barnsley CCG,30/09/2019,C&M-GMS Global Sum,PRC DELEGATED CO-COMMISSIONING,NHS BARNSLEY CCG GP PRACTICE,29107004,"98,190.64"
Department of Health,NHS Barnsley CCG,30/09/2019,C&M-GMS PCN DES Participation,PRC DELEGATED CO-COMMISSIONING,NHS BARNSLEY CCG GP PRACTICE,29107004,"2,013.63"
Department of Health,NHS Barnsley CCG,30/09/2019,C&M-GMS PCO Seniority,PRC DELEGATED CO-COMMISSIONING,NHS BARNSLEY CCG GP PRACTICE,29107004,"2,279.42"
Department of Health,NHS Barnsley CCG,30/09/2019,C&M-GMS Prem Notional Rent,PRC DELEGATED CO-COMMISSIONING,NHS BARNSLEY CCG GP PRACTICE,29107004,"13,593.75"
Department of Health,NHS Barnsley CCG,30/09/2019,C&M-GMS Prem Rates,PRC DELEGATED CO-COMMISSIONING,NHS BARNSLEY CCG GP PRACTICE,29107004,"3,093.54"
Department of Health,NHS Barnsley CCG,30/09/2019,C&M-GMS QOF Aspiration,PRC DELEGATED CO-COMMISSIONING,NHS BARNSLEY CCG GP PRACTICE,29107004,"9,651.42"
Department of Health,NHS Barnsley CCG,30/09/2019,C&M-GMS Global Sum,PRC DELEGATED CO-COMMISSIONING,NHS BARNSLEY CCG GP PRACTICE,29107008,"82,583.48"
Department of Health,NHS Barnsley CCG,30/09/2019,C&M-GMS PCN DES Participation,PRC DELEGATED CO-COMMISSIONING,NHS BARNSLEY CCG GP PRACTICE,29107008,"1,684.26"
Department of Health,NHS Barnsley CCG,30/09/2019,C&M-GMS PCO Other,PRC DELEGATED CO-COMMISSIONING,NHS BARNSLEY CCG GP PRACTICE,29107008,644.20
Department of Health,NHS Barnsley CCG,30/09/2019,C&M-GMS PCO Seniority,PRC DELEGATED CO-COMMISSIONING,NHS BARNSLEY CCG GP PRACTICE,29107008,955.66
Department of Health,NHS Barnsley CCG,30/09/2019,C&M-GMS Prem Rates,PRC DELEGATED CO-COMMISSIONING,NHS BARNSLEY CCG GP PRACTICE,29107008,"2,448.18"
Department of Health,NHS Barnsley CCG,30/09/2019,C&M-GMS QOF Aspiration,PRC DELEGATED CO-COMMISSIONING,NHS BARNSLEY CCG GP PRACTICE,29107008,"10,284.96"
Department of Health,NHS Barnsley CCG,30/09/2019,C&M-PMS Contract Value,PRC DELEGATED CO-COMMISSIONING,NHS BARNSLEY CCG GP PRACTICE,28875997,"-1,118.30"
Department of Health,NHS Barnsley CCG,30/09/2019,C&M-PMS GP Statutory Levy,PRC DELEGATED CO-COMMISSIONING,NHS BARNSLEY CCG GP PRACTICE,28875997,-574.67
Department of Health,NHS Barnsley CCG,30/09/2019,C&M-PMS Out of Hours Opt Outs,PRC DELEGATED CO-COMMISSIONING,NHS BARNSLEY CCG GP PRACTICE,28875997,"-7,071.78"
Department of Health,NHS Barnsley CCG,30/09/2019,C&M-PMS Voluntary Levy,PRC DELEGATED CO-COMMISSIONING,NHS BARNSLEY CCG GP PRACTICE,28875997,-100.57
Department of Health,NHS Barnsley CCG,30/09/2019,ME - PMS TPS Added Years Adj EEs,PRC DELEGATED CO-COMMISSIONING,NHS BARNSLEY CCG GP PRACTICE,28875997,-346.67
Department of Health,NHS Barnsley CCG,30/09/2019,ME-PMS GP Pension EEs-PMS,PRC DELEGATED CO-COMMISSIONING,NHS BARNSLEY CCG GP PRACTICE,28875997,"-8,565.23"
Department of Health,NHS Barnsley CCG,30/09/2019,ME-PMS GP Pension ERs Adjs - PMS,PRC DELEGATED CO-COMMISSIONING,NHS BARNSLEY CCG GP PRACTICE,28875997,"-9,045.61"
Department of Health,NHS Barnsley CCG,30/09/2019,C&M-PMS Contract Value,PRC DELEGATED CO-COMMISSIONING,NHS BARNSLEY CCG GP PRACTICE,28875998,"146,783.40"
Department of Health,NHS Barnsley CCG,30/09/2019,C&M-PMS Out of Hours Opt Outs,PRC DELEGATED CO-COMMISSIONING,NHS BARNSLEY CCG GP PRACTICE,28875998,54.32
Department of Health,NHS Barnsley CCG,30/09/2019,C&M-PMS PCN DES Participation,PRC DELEGATED CO-COMMISSIONING,NHS BARNSLEY CCG GP PRACTICE,28875998,"2,875.49"
Department of Health,NHS Barnsley CCG,30/09/2019,C&M-PMS PCO Other,PRC DELEGATED CO-COMMISSIONING,NHS BARNSLEY CCG GP PRACTICE,28875998,"1,042.90"
Department of Health,NHS Barnsley CCG,30/09/2019,C&M-PMS PCO Seniority,PRC DELEGATED CO-COMMISSIONING,NHS BARNSLEY CCG GP PRACTICE,28875998,"2,503.47"
Department of Health,NHS Barnsley CCG,30/09/2019,C&M-PMS Prem Notional Rent,PRC DELEGATED CO-COMMISSIONING,NHS BARNSLEY CCG GP PRACTICE,28875998,"11,741.66"
Department of Health,NHS Barnsley CCG,30/09/2019,C&M-PMS Prem Rates,PRC DELEGATED CO-COMMISSIONING,NHS BARNSLEY CCG GP PRACTICE,28875998,"12,625.77"
Department of Health,NHS Barnsley CCG,30/09/2019,C&M-PMS QOF Aspiration,PRC DELEGATED CO-COMMISSIONING,NHS BARNSLEY CCG GP PRACTICE,28875998,"15,137.25"
Department of Health,NHS Barnsley CCG,30/09/2019,C&M-PMS Contract Value,PRC DELEGATED CO-COMMISSIONING,NHS BARNSLEY CCG GP PRACTICE,28876000,"103,792.05"
Department of Health,NHS Barnsley CCG,30/09/2019,C&M-PMS PCN DES Participation,PRC DELEGATED CO-COMMISSIONING,NHS BARNSLEY CCG GP PRACTICE,28876000,"2,013.74"
Department of Health,NHS Barnsley CCG,30/09/2019,C&M-PMS PCO Other,PRC DELEGATED CO-COMMISSIONING,NHS BARNSLEY CCG GP PRACTICE,28876000,726.40
Department of Health,NHS Barnsley CCG,30/09/2019,C&M-PMS PCO Seniority,PRC DELEGATED CO-COMMISSIONING,NHS BARNSLEY CCG GP PRACTICE,28876000,648.07
Department of Health,NHS Barnsley CCG,30/09/2019,C&M-PMS Prem Actual Rent,PRC DELEGATED CO-COMMISSIONING,NHS BARNSLEY CCG GP PRACTICE,28876000,"13,333.33"
Department of Health,NHS Barnsley CCG,30/09/2019,C&M-PMS Prem Rates,PRC DELEGATED CO-COMMISSIONING,NHS BARNSLEY CCG GP PRACTICE,28876000,"3,276.00"
Department of Health,NHS Barnsley CCG,30/09/2019,C&M-PMS Prem Water Rates,PRC DELEGATED CO-COMMISSIONING,NHS BARNSLEY CCG GP PRACTICE,28876000,342.06
Department of Health,NHS Barnsley CCG,30/09/2019,C&M-PMS QOF Aspiration,PRC DELEGATED CO-COMMISSIONING,NHS BARNSLEY CCG GP PRACTICE,28876000,"10,812.71"
Department of Health,NHS Barnsley CCG,30/09/2019,C&M-PMS Contract Value,PRC DELEGATED CO-COMMISSIONING,NHS BARNSLEY CCG GP PRACTICE,28876002,"91,791.59"
Department of Health,NHS Barnsley CCG,30/09/2019,C&M-PMS DES Learn Dsblty Hlth Chk,PRC DELEGATED CO-COMMISSIONING,NHS BARNSLEY CCG GP PRACTICE,28876002,560.00
Department of Health,NHS Barnsley CCG,30/09/2019,C&M-PMS PCN DES Participation,PRC DELEGATED CO-COMMISSIONING,NHS BARNSLEY CCG GP PRACTICE,28876002,"1,787.42"
Department of Health,NHS Barnsley CCG,30/09/2019,C&M-PMS PCO Other,PRC DELEGATED CO-COMMISSIONING,NHS BARNSLEY CCG GP PRACTICE,28876002,709.80
Department of Health,NHS Barnsley CCG,30/09/2019,C&M-PMS PCO Seniority,PRC DELEGATED CO-COMMISSIONING,NHS BARNSLEY CCG GP PRACTICE,28876002,909.36
Department of Health,NHS Barnsley CCG,30/09/2019,C&M-PMS Prem Actual Rent,PRC DELEGATED CO-COMMISSIONING,NHS BARNSLEY CCG GP PRACTICE,28876002,"8,566.67"
Department of Health,NHS Barnsley CCG,30/09/2019,C&M-PMS Prem Rates,PRC DELEGATED CO-COMMISSIONING,NHS BARNSLEY CCG GP PRACTICE,28876002,"2,080.00"
Department of Health,NHS Barnsley CCG,30/09/2019,C&M-PMS QOF Aspiration,PRC DELEGATED CO-COMMISSIONING,NHS BARNSLEY CCG GP PRACTICE,28876002,"7,216.95"
Department of Health,NHS Barnsley CCG,30/09/2019,ME - PMS GP Prior Year ERs,PRC DELEGATED CO-COMMISSIONING,NHS BARNSLEY CCG GP PRACTICE,28876002,"13,739.58"
Department of Health,NHS Barnsley CCG,30/09/2019,ME-PMS GP Prior Year EEs,PRC DELEGATED CO-COMMISSIONING,NHS BARNSLEY CCG GP PRACTICE,28876002,"16,094.53"
Department of Health,NHS Barnsley CCG,30/09/2019,C&M-GMS Global Sum,PRC DELEGATED CO-COMMISSIONING,NHS BARNSLEY CCG GP PRACTICE,29107010,"57,682.80"
Department of Health,NHS Barnsley CCG,30/09/2019,C&M-GMS PCN DES Participation,PRC DELEGATED CO-COMMISSIONING,NHS BARNSLEY CCG GP PRACTICE,29107010,"1,187.90"
Department of Health,NHS Barnsley CCG,30/09/2019,C&M-GMS PCO Seniority,PRC DELEGATED CO-COMMISSIONING,NHS BARNSLEY CCG GP PRACTICE,29107010,702.37
Department of Health,NHS Barnsley CCG,30/09/2019,C&M-GMS Prem Healthcentre Rent,PRC DELEGATED CO-COMMISSIONING,NHS BARNSLEY CCG GP PRACTICE,29107010,"24,538.12"
Department of Health,NHS Barnsley CCG,30/09/2019,C&M-GMS QOF Aspiration,PRC DELEGATED CO-COMMISSIONING,NHS BARNSLEY CCG GP PRACTICE,29107010,"6,065.73"
Department of Health,NHS Barnsley CCG,30/09/2019,C&M-PMS Contract Value,PRC DELEGATED CO-COMMISSIONING,NHS BARNSLEY CCG GP PRACTICE,28876004,"105,067.65"
Department of Health,NHS Barnsley CCG,30/09/2019,C&M-PMS PCN DES Participation,PRC DELEGATED CO-COMMISSIONING,NHS BARNSLEY CCG GP PRACTICE,28876004,"2,041.60"
Department of Health,NHS Barnsley CCG,30/09/2019,C&M-PMS PCO Seniority,PRC DELEGATED CO-COMMISSIONING,NHS BARNSLEY CCG GP PRACTICE,28876004,"3,661.09"
Department of Health,NHS Barnsley CCG,30/09/2019,C&M-PMS Prem Rates,PRC DELEGATED CO-COMMISSIONING,NHS BARNSLEY CCG GP PRACTICE,28876004,"3,513.00"
Department of Health,NHS Barnsley CCG,30/09/2019,C&M-PMS QOF Aspiration,PRC DELEGATED CO-COMMISSIONING,NHS BARNSLEY CCG GP PRACTICE,28876004,"11,217.47"
Department of Health,NHS Barnsley CCG,30/09/2019,C&M-GMS Global Sum,PRC DELEGATED CO-COMMISSIONING,NHS BARNSLEY CCG GP PRACTICE,29107014,"49,959.04"
Department of Health,NHS Barnsley CCG,30/09/2019,C&M-GMS PCN DES Participation,PRC DELEGATED CO-COMMISSIONING,NHS BARNSLEY CCG GP PRACTICE,29107014,"1,018.56"
Department of Health,NHS Barnsley CCG,30/09/2019,C&M-GMS PCO Seniority,PRC DELEGATED CO-COMMISSIONING,NHS BARNSLEY CCG GP PRACTICE,29107014,982.38
Department of Health,NHS Barnsley CCG,30/09/2019,C&M-GMS Prem Notional Rent,PRC DELEGATED CO-COMMISSIONING,NHS BARNSLEY CCG GP PRACTICE,29107014,"2,750.00"
Department of Health,NHS Barnsley CCG,30/09/2019,C&M-GMS Prem Rates,PRC DELEGATED CO-COMMISSIONING,NHS BARNSLEY CCG GP PRACTICE,29107014,565.00
Department of Health,NHS Barnsley CCG,30/09/2019,C&M-GMS Prem Water Rates,PRC DELEGATED CO-COMMISSIONING,NHS BARNSLEY CCG GP PRACTICE,29107014,150.52
Department of Health,NHS Barnsley CCG,30/09/2019,C&M-GMS QOF Aspiration,PRC DELEGATED CO-COMMISSIONING,NHS BARNSLEY CCG GP PRACTICE,29107014,"3,844.61"
Department of Health,NHS Barnsley CCG,30/09/2019,C&M-PMS Contract Value,PRC DELEGATED CO-COMMISSIONING,NHS BARNSLEY CCG GP PRACTICE,28876018,"41,819.08"
Department of Health,NHS Barnsley CCG,30/09/2019,C&M-PMS Out of Hours Opt Outs,PRC DELEGATED CO-COMMISSIONING,NHS BARNSLEY CCG GP PRACTICE,28876018,36.05
Department of Health,NHS Barnsley CCG,30/09/2019,C&M-PMS PCN DES Participation,PRC DELEGATED CO-COMMISSIONING,NHS BARNSLEY CCG GP PRACTICE,28876018,799.36
Department of Health,NHS Barnsley CCG,30/09/2019,C&M-PMS PCO Seniority,PRC DELEGATED CO-COMMISSIONING,NHS BARNSLEY CCG GP PRACTICE,28876018,183.01
Department of Health,NHS Barnsley CCG,30/09/2019,C&M-PMS Prem Rates,PRC DELEGATED CO-COMMISSIONING,NHS BARNSLEY CCG GP PRACTICE,28876018,"3,500.00"
Department of Health,NHS Barnsley CCG,30/09/2019,C&M-PMS QOF Aspiration,PRC DELEGATED CO-COMMISSIONING,NHS BARNSLEY CCG GP PRACTICE,28876018,"4,070.72"
Department of Health,NHS Barnsley CCG,30/09/2019,C&M-GMS GP Statutory Levy,PRC DELEGATED CO-COMMISSIONING,NHS BARNSLEY CCG GP PRACTICE,29147101,-366.83
Department of Health,NHS Barnsley CCG,30/09/2019,C&M-GMS Global Sum,PRC DELEGATED CO-COMMISSIONING,NHS BARNSLEY CCG GP PRACTICE,29147101,"96,526.76"
Department of Health,NHS Barnsley CCG,30/09/2019,C&M-GMS PCN DES Participation,PRC DELEGATED CO-COMMISSIONING,NHS BARNSLEY CCG GP PRACTICE,29147101,"1,967.78"
Department of Health,NHS Barnsley CCG,30/09/2019,C&M-GMS PCO Seniority,PRC DELEGATED CO-COMMISSIONING,NHS BARNSLEY CCG GP PRACTICE,29147101,"2,222.95"
Department of Health,NHS Barnsley CCG,30/09/2019,C&M-GMS Prem Healthcentre Rent,PRC DELEGATED CO-COMMISSIONING,NHS BARNSLEY CCG GP PRACTICE,29147101,"39,576.01"
Department of Health,NHS Barnsley CCG,30/09/2019,C&M-GMS QOF Aspiration,PRC DELEGATED CO-COMMISSIONING,NHS BARNSLEY CCG GP PRACTICE,29147101,"9,168.58"
Department of Health,NHS Barnsley CCG,30/09/2019,C&M-GMS Voluntary Levy,PRC DELEGATED CO-COMMISSIONING,NHS BARNSLEY CCG GP PRACTICE,29147101,-64.20
Department of Health,NHS Barnsley CCG,30/09/2019,ME-GMS GP Pension EEs,PRC DELEGATED CO-COMMISSIONING,NHS BARNSLEY CCG GP PRACTICE,29147101,"-2,776.56"
Department of Health,NHS Barnsley CCG,30/09/2019,ME-GMS GP Pension ERs Adjustments,PRC DELEGATED CO-COMMISSIONING,NHS BARNSLEY CCG GP PRACTICE,29147101,"-3,103.08"
Department of Health,NHS Barnsley CCG,30/09/2019,C&M-GMS Global Sum,PRC DELEGATED CO-COMMISSIONING,NHS BARNSLEY CCG GP PRACTICE,29107016,"90,792.99"
Department of Health,NHS Barnsley CCG,30/09/2019,C&M-GMS PCN DES Participation,PRC DELEGATED CO-COMMISSIONING,NHS BARNSLEY CCG GP PRACTICE,29107016,"1,845.99"
Department of Health,NHS Barnsley CCG,30/09/2019,C&M-GMS PCO Seniority,PRC DELEGATED CO-COMMISSIONING,NHS BARNSLEY CCG GP PRACTICE,29107016,"3,426.89"
Department of Health,NHS Barnsley CCG,30/09/2019,C&M-GMS Prem Healthcentre Rent,PRC DELEGATED CO-COMMISSIONING,NHS BARNSLEY CCG GP PRACTICE,29107016,"21,846.34"
Department of Health,NHS Barnsley CCG,30/09/2019,C&M-GMS Prem Notional Rent,PRC DELEGATED CO-COMMISSIONING,NHS BARNSLEY CCG GP PRACTICE,29107016,"1,466.67"
Department of Health,NHS Barnsley CCG,30/09/2019,C&M-GMS QOF Aspiration,PRC DELEGATED CO-COMMISSIONING,NHS BARNSLEY CCG GP PRACTICE,29107016,"10,019.14"
Department of Health,NHS Barnsley CCG,30/09/2019,C&M-PMS Contract Value,PRC DELEGATED CO-COMMISSIONING,NHS BARNSLEY CCG GP PRACTICE,28876006,"50,661.33"
Department of Health,NHS Barnsley CCG,30/09/2019,C&M-PMS Out of Hours Opt Outs,PRC DELEGATED CO-COMMISSIONING,NHS BARNSLEY CCG GP PRACTICE,28876006,25.48
Department of Health,NHS Barnsley CCG,30/09/2019,C&M-PMS PCN DES Participation,PRC DELEGATED CO-COMMISSIONING,NHS BARNSLEY CCG GP PRACTICE,28876006,970.05
Department of Health,NHS Barnsley CCG,30/09/2019,C&M-PMS PCO Seniority,PRC DELEGATED CO-COMMISSIONING,NHS BARNSLEY CCG GP PRACTICE,28876006,"1,294.87"
Department of Health,NHS Barnsley CCG,30/09/2019,C&M-PMS Prem Healthcentre Rent,PRC DELEGATED CO-COMMISSIONING,NHS BARNSLEY CCG GP PRACTICE,28876006,"5,961.99"
Department of Health,NHS Barnsley CCG,30/09/2019,C&M-PMS Prem Notional Rent,PRC DELEGATED CO-COMMISSIONING,NHS BARNSLEY CCG GP PRACTICE,28876006,"3,666.67"
Department of Health,NHS Barnsley CCG,30/09/2019,C&M-PMS Prem Rates,PRC DELEGATED CO-COMMISSIONING,NHS BARNSLEY CCG GP PRACTICE,28876006,839.00
Department of Health,NHS Barnsley CCG,30/09/2019,C&M-PMS QOF Aspiration,PRC DELEGATED CO-COMMISSIONING,NHS BARNSLEY CCG GP PRACTICE,28876006,"5,136.89"
Department of Health,NHS Barnsley CCG,30/09/2019,C&M-PMS Contract Value,PRC DELEGATED CO-COMMISSIONING,NHS BARNSLEY CCG GP PRACTICE,28884446,"30,421.74"
Department of Health,NHS Barnsley CCG,30/09/2019,C&M-PMS PCN DES Participation,PRC DELEGATED CO-COMMISSIONING,NHS BARNSLEY CCG GP PRACTICE,28884446,570.89
Department of Health,NHS Barnsley CCG,30/09/2019,C&M-PMS Prem Notional Rent,PRC DELEGATED CO-COMMISSIONING,NHS BARNSLEY CCG GP PRACTICE,28884446,"4,333.33"
Department of Health,NHS Barnsley CCG,30/09/2019,C&M-PMS Prem Rates,PRC DELEGATED CO-COMMISSIONING,NHS BARNSLEY CCG GP PRACTICE,28884446,"1,300.00"
Department of Health,NHS Barnsley CCG,30/09/2019,C&M-PMS QOF Aspiration,PRC DELEGATED CO-COMMISSIONING,NHS BARNSLEY CCG GP PRACTICE,28884446,"2,166.21"
Department of Health,NHS Barnsley CCG,30/09/2019,C&M-GMS Global Sum,PRC DELEGATED CO-COMMISSIONING,NHS BARNSLEY CCG GP PRACTICE,29108396,"96,526.76"
Department of Health,NHS Barnsley CCG,30/09/2019,C&M-GMS PCN DES Participation,PRC DELEGATED CO-COMMISSIONING,NHS BARNSLEY CCG GP PRACTICE,29108396,"1,967.78"
Department of Health,NHS Barnsley CCG,30/09/2019,C&M-GMS PCO Seniority,PRC DELEGATED CO-COMMISSIONING,NHS BARNSLEY CCG GP PRACTICE,29108396,"2,222.95"
Department of Health,NHS Barnsley CCG,30/09/2019,C&M-GMS Prem Healthcentre Rent,PRC DELEGATED CO-COMMISSIONING,NHS BARNSLEY CCG GP PRACTICE,29108396,"39,576.01"
Department of Health,NHS Barnsley CCG,30/09/2019,C&M-GMS QOF Aspiration,PRC DELEGATED CO-COMMISSIONING,NHS BARNSLEY CCG GP PRACTICE,29108396,"9,168.58"
Department of Health,NHS Barnsley CCG,30/09/2019,C&M-PMS Cost of Drugs -Dispensing,LOCAL ENHANCED SERVICES,NHS BARNSLEY CCG GP PRACTICE,29132695,"26,813.24"
Department of Health,NHS Barnsley CCG,30/09/2019,C&M-PMS Prof fees Dispensing,PRC DELEGATED CO-COMMISSIONING,NHS BARNSLEY CCG GP PRACTICE,29132695,"5,693.55"
Department of Health,NHS Barnsley CCG,30/09/2019,C&M-PMS Prsc Chrgs Cll&Rmttd by GPs,LOCAL ENHANCED SERVICES,NHS BARNSLEY CCG GP PRACTICE,29132695,"1,764.00"
Department of Health,NHS Barnsley CCG,30/09/2019,C&M-APMS Contract Value,PRC DELEGATED CO-COMMISSIONING,NHS BARNSLEY CCG GP PRACTICE,28876010,"19,809.86"
Department of Health,NHS Barnsley CCG,30/09/2019,C&M-APMS PCN DES Participation,PRC DELEGATED CO-COMMISSIONING,NHS BARNSLEY CCG GP PRACTICE,28876010,378.75
Department of Health,NHS Barnsley CCG,30/09/2019,C&M-APMS Prem Healthcentre Rent,PRC DELEGATED CO-COMMISSIONING,NHS BARNSLEY CCG GP PRACTICE,28876010,"4,986.28"
Department of Health,NHS Barnsley CCG,30/09/2019,C&M-PMS QOF Aspiration,PRC DELEGATED CO-COMMISSIONING,NHS BARNSLEY CCG GP PRACTICE,28876010,"1,724.79"
Department of Health,NHS Barnsley CCG,30/09/2019,C&M-GMS Global Sum,PRC DELEGATED CO-COMMISSIONING,NHS BARNSLEY CCG GP PRACTICE,29108398,"62,330.18"
Department of Health,NHS Barnsley CCG,30/09/2019,C&M-GMS PCN DES Participation,PRC DELEGATED CO-COMMISSIONING,NHS BARNSLEY CCG GP PRACTICE,29108398,"1,280.72"
Department of Health,NHS Barnsley CCG,30/09/2019,C&M-GMS PCO Seniority,PRC DELEGATED CO-COMMISSIONING,NHS BARNSLEY CCG GP PRACTICE,29108398,"1,502.69"
Department of Health,NHS Barnsley CCG,30/09/2019,C&M-GMS Prem Notional Rent,PRC DELEGATED CO-COMMISSIONING,NHS BARNSLEY CCG GP PRACTICE,29108398,"8,873.23"
Department of Health,NHS Barnsley CCG,30/09/2019,C&M-GMS QOF Aspiration,PRC DELEGATED CO-COMMISSIONING,NHS BARNSLEY CCG GP PRACTICE,29108398,"6,864.29"
Department of Health,NHS Barnsley CCG,30/09/2019,C&M-PMS Contract Value,PRC DELEGATED CO-COMMISSIONING,NHS BARNSLEY CCG GP PRACTICE,28876008,"76,798.78"
Department of Health,NHS Barnsley CCG,30/09/2019,C&M-PMS PCN DES Participation,PRC DELEGATED CO-COMMISSIONING,NHS BARNSLEY CCG GP PRACTICE,28876008,"1,483.61"
Department of Health,NHS Barnsley CCG,30/09/2019,C&M-PMS PCO Seniority,PRC DELEGATED CO-COMMISSIONING,NHS BARNSLEY CCG GP PRACTICE,28876008,"1,610.94"
Department of Health,NHS Barnsley CCG,30/09/2019,C&M-PMS Prem Actual Rent,PRC DELEGATED CO-COMMISSIONING,NHS BARNSLEY CCG GP PRACTICE,28876008,319.38
Department of Health,NHS Barnsley CCG,30/09/2019,C&M-PMS Prem Healthcentre Rent,PRC DELEGATED CO-COMMISSIONING,NHS BARNSLEY CCG GP PRACTICE,28876008,"21,462.45"
Department of Health,NHS Barnsley CCG,30/09/2019,C&M-PMS QOF Aspiration,PRC DELEGATED CO-COMMISSIONING,NHS BARNSLEY CCG GP PRACTICE,28876008,"6,461.55"
Department of Health,NHS Barnsley CCG,30/09/2019,C&M-PMS Contract Value,PRC DELEGATED CO-COMMISSIONING,NHS BARNSLEY CCG GP PRACTICE,28884440,"45,566.92"
Department of Health,NHS Barnsley CCG,30/09/2019,C&M-PMS PCN DES Participation,PRC DELEGATED CO-COMMISSIONING,NHS BARNSLEY CCG GP PRACTICE,28884440,878.38
Department of Health,NHS Barnsley CCG,30/09/2019,C&M-PMS PCO Other,PRC DELEGATED CO-COMMISSIONING,NHS BARNSLEY CCG GP PRACTICE,28884440,336.90
Department of Health,NHS Barnsley CCG,30/09/2019,C&M-PMS Prem Rates,PRC DELEGATED CO-COMMISSIONING,NHS BARNSLEY CCG GP PRACTICE,28884440,"1,625.00"
Department of Health,NHS Barnsley CCG,30/09/2019,C&M-PMS QOF Aspiration,PRC DELEGATED CO-COMMISSIONING,NHS BARNSLEY CCG GP PRACTICE,28884440,"4,097.25"
Department of Health,NHS Barnsley CCG,30/09/2019,Hcare Srv Rec NHS CCG-Non Contract,NCAS/OATS,NHS WAKEFIELD CCG,29011093,"-44,200.20"
Department of Health,NHS Barnsley CCG,30/09/2019,Hcare Srv Rec NHS CCG-Non Contract,NCAS/OATS,NHS WAKEFIELD CCG,29168879,"44,200.20"
Department of Health,NHS Barnsley CCG,30/09/2019,Clinical&Medical-Commercial Sector,ACUTE COMMISSIONING,ONEHEALTH GROUP,28802283,"138,084.94"
Department of Health,NHS Barnsley CCG,30/09/2019,Clinical&Medical-Commercial Sector,ACUTE COMMISSIONING,ONEHEALTH GROUP,28819489,"45,348.49"
Department of Health,NHS Barnsley CCG,30/09/2019,Clinical&Medical-Commercial Sector,ACUTE COMMISSIONING,ONEHEALTH GROUP,29058039,"138,084.91"
Department of Health,NHS Barnsley CCG,30/09/2019,Clinical&Medical-Commercial Sector,ACUTE COMMISSIONING,ONEHEALTH GROUP,29058046,"47,976.64"
Department of Health,NHS Barnsley CCG,30/09/2019,Hcare Srv Rec Fdtn Trust-CQUIN,MENTAL HEALTH CONTRACTS,ROTHERHAM DONCASTER AND SOUTH HUMBER NHS FOUNDATION TRUST,29057919,235.50
Department of Health,NHS Barnsley CCG,30/09/2019,Hcare Srv Rec Fdtn Trust-Contract Baseline,MENTAL HEALTH CONTRACTS,ROTHERHAM DONCASTER AND SOUTH HUMBER NHS FOUNDATION TRUST,29057919,"37,679.00"
Department of Health,NHS Barnsley CCG,31/08/2019,Hcare Srv Rec Fdtn Trust-CQUIN,MENTAL HEALTH CONTRACTS,ROTHERHAM DONCASTER AND SOUTH HUMBER NHS FOUNDATION TRUST,28700501,235.50
Department of Health,NHS Barnsley CCG,31/08/2019,Hcare Srv Rec Fdtn Trust-Contract Baseline,MENTAL HEALTH CONTRACTS,ROTHERHAM DONCASTER AND SOUTH HUMBER NHS FOUNDATION TRUST,28700501,"37,679.00"
Department of Health,NHS Barnsley CCG,30/09/2019,Hcare Srv Rec Fdtn Trust-CQUIN,COMMUNITY SERVICES,ROTHERHAM NHS FOUNDATION TRUST,28855406,530.00
Department of Health,NHS Barnsley CCG,30/09/2019,Hcare Srv Rec Fdtn Trust-Contract Baseline,COMMUNITY SERVICES,ROTHERHAM NHS FOUNDATION TRUST,28855406,"42,420.00"
Department of Health,NHS Barnsley CCG,30/09/2019,Hcare Srv Rec Fdtn Trust-CQUIN,ACUTE COMMISSIONING,ROTHERHAM NHS FOUNDATION TRUST,28855420,"2,339.00"
Department of Health,NHS Barnsley CCG,30/09/2019,Hcare Srv Rec Fdtn Trust-Contract Baseline,ACUTE COMMISSIONING,ROTHERHAM NHS FOUNDATION TRUST,28855420,"410,225.00"
Department of Health,NHS Barnsley CCG,31/08/2019,Hcare Srv Rec Fdtn Trust-CQUIN,ACUTE COMMISSIONING,SHEFFIELD CHILDRENS NHS FOUNDATION TRUST,28663198,966.00
Department of Health,NHS Barnsley CCG,31/08/2019,Hcare Srv Rec Fdtn Trust-Contract Baseline,ACUTE COMMISSIONING,SHEFFIELD CHILDRENS NHS FOUNDATION TRUST,28663198,"157,714.00"
Department of Health,NHS Barnsley CCG,30/09/2019,Hcare Srv Rec Fdtn Trust-Contract Baseline,ACUTE COMMISSIONING,SHEFFIELD TEACHING HOSPITALS NHS FOUNDATION TRUST,28888411,"-27,260.00"
Department of Health,NHS Barnsley CCG,31/08/2019,Hcare Srv Rec Fdtn Trust-Contract Baseline,ACUTE COMMISSIONING,SHEFFIELD TEACHING HOSPITALS NHS FOUNDATION TRUST,28663226,"183,041.00"
Department of Health,NHS Barnsley CCG,31/08/2019,Hcare Srv Rec Fdtn Trust-Contract Baseline,ACUTE COMMISSIONING,SHEFFIELD TEACHING HOSPITALS NHS FOUNDATION TRUST,28663227,"1,923,125.00"
Department of Health,NHS Barnsley CCG,31/08/2019,Hcare Srv Rec Fdtn Trust-CQUIN,ACUTE COMMISSIONING,SHEFFIELD TEACHING HOSPITALS NHS FOUNDATION TRUST,28700559,"10,761.00"
Department of Health,NHS Barnsley CCG,31/08/2019,Hcare Srv Rec Fdtn Trust-Contract Baseline,ACUTE COMMISSIONING,SHEFFIELD TEACHING HOSPITALS NHS FOUNDATION TRUST,28700559,"25,183.00"
Department of Health,NHS Barnsley CCG,30/09/2019,Hcare Srv Rec Fdtn Trust-CQUIN,IMPROVING ACCESS TO PSYCHOLOGICAL THERAPIES,SOUTH WEST YORKSHIRE PARTNERSHIP NHS FOUNDATION TRUST,28855850,"183,771.00"
Department of Health,NHS Barnsley CCG,30/09/2019,Hcare Srv Rec Fdtn Trust-Contract Baseline,IMPROVING ACCESS TO PSYCHOLOGICAL THERAPIES,SOUTH WEST YORKSHIRE PARTNERSHIP NHS FOUNDATION TRUST,29145674,"28,786.00"
Department of Health,NHS Barnsley CCG,30/09/2019,Hcare Srv Rec Fdtn Trust-Contract Baseline,MENTAL HEALTH SERVICES - ADULTS,SOUTH WEST YORKSHIRE PARTNERSHIP NHS FOUNDATION TRUST,29145674,"56,652.00"
Department of Health,NHS Barnsley CCG,31/08/2019,Hcare Srv Rec Fdtn Trust-Contract Baseline,INTERMEDIATE CARE,SOUTH WEST YORKSHIRE PARTNERSHIP NHS FOUNDATION TRUST,28750329,"1,286,999.00"
Department of Health,NHS Barnsley CCG,31/08/2019,Hcare Srv Rec Fdtn Trust-CQUIN,COMMUNITY SERVICES,SOUTH WEST YORKSHIRE PARTNERSHIP NHS FOUNDATION TRUST,28750330,"7,101.50"
Department of Health,NHS Barnsley CCG,31/08/2019,Hcare Srv Rec Fdtn Trust-CQUIN,LEARNING DIFFICULTIES,SOUTH WEST YORKSHIRE PARTNERSHIP NHS FOUNDATION TRUST,28750330,"1,089.50"
Department of Health,NHS Barnsley CCG,31/08/2019,Hcare Srv Rec Fdtn Trust-CQUIN,MENTAL HEALTH SERVICES - ADULTS,SOUTH WEST YORKSHIRE PARTNERSHIP NHS FOUNDATION TRUST,28750330,"12,122.50"
Department of Health,NHS Barnsley CCG,31/08/2019,Hcare Srv Rec Fdtn Trust-CQUIN,MENTAL HEALTH SERVICES - OLDER PEOPLE,SOUTH WEST YORKSHIRE PARTNERSHIP NHS FOUNDATION TRUST,28750330,"1,408.50"
Department of Health,NHS Barnsley CCG,31/08/2019,Hcare Srv Rec Fdtn Trust-Contract Baseline,COMMUNITY SERVICES,SOUTH WEST YORKSHIRE PARTNERSHIP NHS FOUNDATION TRUST,28750330,"1,136,201.00"
Department of Health,NHS Barnsley CCG,31/08/2019,Hcare Srv Rec Fdtn Trust-Contract Baseline,LEARNING DIFFICULTIES,SOUTH WEST YORKSHIRE PARTNERSHIP NHS FOUNDATION TRUST,28750330,"174,345.00"
Department of Health,NHS Barnsley CCG,31/08/2019,Hcare Srv Rec Fdtn Trust-Contract Baseline,MENTAL HEALTH SERVICES - ADULTS,SOUTH WEST YORKSHIRE PARTNERSHIP NHS FOUNDATION TRUST,28750330,"1,955,613.00"
Department of Health,NHS Barnsley CCG,31/08/2019,Hcare Srv Rec Fdtn Trust-Contract Baseline,MENTAL HEALTH SERVICES - OLDER PEOPLE,SOUTH WEST YORKSHIRE PARTNERSHIP NHS FOUNDATION TRUST,28750330,"239,751.00"
Department of Health,NHS Barnsley CCG,31/08/2019,Hcare Srv Rec Fdtn Trust-Non Contract,COMMUNITY SERVICES,SOUTH WEST YORKSHIRE PARTNERSHIP NHS FOUNDATION TRUST,28750330,"67,448.00"
Department of Health,NHS Barnsley CCG,30/09/2019,Clinical&Medical-Commercial Sector,NCAS/OATS,SPAMEDICA LTD,28844395,"91,455.92"
Department of Health,NHS Barnsley CCG,30/09/2019,Cont Care-Learning Disab(<65),CHC ADULT JOINT FUNDED,VOYAGE CARE,29155547,"-45,943.50"
Department of Health,NHS Barnsley CCG,30/09/2019,Cont Care-Learning Disab(<65),CHC ADULT JOINT FUNDED,VOYAGE CARE,29155548,"-26,533.17"
Department of Health,NHS Barnsley CCG,30/09/2019,Cont Care-Learning Disab(<65),CHC ADULT JOINT FUNDED,VOYAGE CARE,29155549,"-43,687.62"
Department of Health,NHS Barnsley CCG,30/09/2019,Cont Care-Learning Disab(<65),CHC ADULT JOINT FUNDED,VOYAGE CARE,29155550,"-25,254.79"
Department of Health,NHS Barnsley CCG,30/09/2019,Cont Care-Learning Disab(<65),CHC ADULT JOINT FUNDED,VOYAGE CARE,29155557,"53,066.34"
Department of Health,NHS Barnsley CCG,30/09/2019,Cont Care-Learning Disab(<65),CHC ADULT JOINT FUNDED,VOYAGE CARE,29155562,"50,509.57"
Department of Health,NHS Barnsley CCG,31/08/2019,Hcare Srv Rec NHS Trust-Contract Baseline,PATIENT TRANSPORT,YORKSHIRE AMBULANCE SERVICE NHS TRUST,28765542,"139,747.03"
Department of Health,NHS Barnsley CCG,31/08/2019,Hcare Srv Rec NHS Trust-Contract Baseline,NHS 111,YORKSHIRE AMBULANCE SERVICE NHS TRUST,28765543,"65,235.31"
Department of Health,NHS Barnsley CCG,31/08/2019,Hcare Srv Rec NHS Trust-Contract Baseline,AMBULANCE SERVICES,YORKSHIRE AMBULANCE SERVICE NHS TRUST,28765544,"728,818.00"
,,,,,,,"28,609,736.76"
